bitfinex/quotes_BTCUSD_20220306
["timestamp","ask_amount","ask_price","bid_price","bid_amount"]
[1646606363127,0.15060751,39103.0,39102.0,1.18251078]
[1646606363327,0.15077411,39103.0,39102.0,1.18251078]
[1646606363926,0.15077411,39103.0,39102.0,1.18248555]
[1646606364328,0.15077411,39103.0,39102.0,0.81782342]
[1646606364927,0.15077411,39103.0,39102.0,1.18248494]
[1646606365528,0.15077411,39103.0,39102.0,1.18243961]
[1646606365772,0.15077411,39103.0,39102.0,1.18199731]
[1646606365976,0.15077411,39103.0,39102.0,0.81738112]
[1646606366172,0.14933411,39103.0,39102.0,1.20139012]
[1646606366381,0.05540071,39103.0,39102.0,1.20139012]
[1646606366574,8e-08,39104.0,39103.0,0.05]
[1646606366773,0.05184723,39119.0,39109.0,0.063936]
[1646606366975,0.03907723,39119.0,39112.0,0.27224412]
[1646606367372,0.03907723,39119.0,39113.0,0.05]
[1646606367575,0.03516951,39119.0,39113.0,0.05]
[1646606367773,0.03516951,39119.0,39118.0,0.1564458]
[1646606367973,0.03516951,39119.0,39118.0,0.5404548]
[1646606368175,0.01277,39124.0,39118.0,0.1564458]
[1646606368176,0.2094398,39124.0,39118.0,0.1564458]
[1646606368376,0.2094398,39125.0,39118.0,0.1564458]
[1646606368574,0.2094398,39125.0,39123.0,0.0925128]
[1646606368978,0.03828456,39126.0,39123.0,0.0925128]
[1646606368979,0.24772436,39126.0,39123.0,0.1564388]
[1646606369420,0.03828456,39126.0,39123.0,0.1564388]
[1646606369624,0.00021441,39127.0,39123.0,0.063926]
[1646606369824,0.00021441,39127.0,39125.0,0.0925128]
[1646606370023,0.2222098,39131.0,39126.0,0.06392]
[1646606370223,0.011437,39130.0,39123.0,0.127839]
[1646606370422,0.011437,39130.0,39129.0,0.0925128]
[1646606370623,0.13880273,39130.0,39129.0,0.0925128]
[1646606372426,0.2094398,39135.0,39129.0,0.1564278]
[1646606372625,0.2094398,39136.0,39133.0,0.0925128]
[1646606372825,0.0374669,39137.0,39133.0,0.0925128]
[1646606373024,0.0374669,39137.0,39136.0,0.0925128]
[1646606374676,0.2974669,39137.0,39136.0,0.0925128]
[1646606377134,0.2974669,39137.0,39131.0,0.063912]
[1646606377334,0.2974669,39137.0,39136.0,0.0925128]
[1646606378635,0.30906692,39137.0,39136.0,0.0925128]
[1646606378838,0.29762992,39137.0,39136.0,0.0925128]
[1646606380241,0.26016302,39137.0,39136.0,0.0925128]
[1646606382180,0.26016302,39137.0,39135.0,7.489e-05]
[1646606382577,0.26016302,39137.0,39136.0,0.0925128]
[1646606383179,0.26016302,39137.0,39133.0,8.987e-05]
[1646606383380,0.26016302,39137.0,39136.0,0.0925128]
[1646606383579,0.26016302,39137.0,39133.0,8.987e-05]
[1646606383778,0.26016302,39137.0,39136.0,0.0925128]
[1646606385225,0.30874625,39137.0,39136.0,0.0925128]
[1646606385426,0.29730925,39137.0,39136.0,0.0925128]
[1646606389090,0.3345623,39137.0,39136.0,0.0925128]
[1646606392433,0.3345623,39137.0,39136.0,0.09244179]
[1646606392637,0.3345623,39137.0,39136.0,0.14244179]
[1646606394135,0.3345623,39137.0,39136.0,0.09244179]
[1646606394637,0.3345623,39137.0,39136.0,0.47645079]
[1646606395037,0.3345623,39137.0,39136.0,0.52645079]
[1646606395438,0.3345623,39137.0,39136.0,0.14244179]
[1646606396877,0.3345623,39137.0,39136.0,0.52645079]
[1646606397675,0.3345623,39137.0,39136.0,0.38369]
[1646606399176,0.3345623,39137.0,39136.0,0.43369]
[1646606400627,0.3345623,39137.0,39136.0,0.73369]
[1646606400827,0.3345623,39137.0,39136.0,0.83369]
[1646606404478,0.07177069,39137.0,39136.0,0.88499]
[1646606408728,0.07194833,39137.0,39136.0,0.88499]
[1646606410695,0.07194833,39137.0,39136.0,0.87612907]
[1646606412587,0.07194833,39137.0,39136.0,1.08443702]
[1646606412985,0.07194833,39137.0,39136.0,0.7846824]
[1646606413386,0.07194833,39137.0,39136.0,0.57637445]
[1646606413886,0.07194833,39137.0,39136.0,0.87637445]
[1646606414529,0.07194833,39137.0,39136.0,1.0846824]
[1646606414928,0.07194833,39137.0,39136.0,0.87637445]
[1646606415528,0.33194833,39137.0,39136.0,0.87637445]
[1646606416529,0.33194833,39137.0,39136.0,1.0846824]
[1646606418382,0.33194833,39137.0,39136.0,1.08443702]
[1646606421780,0.33194833,39137.0,39136.0,0.87612907]
[1646606422729,0.33194833,39137.0,39136.0,1.08443702]
[1646606424634,0.10852884,39137.0,39136.0,1.08443702]
[1646606426375,0.10852884,39137.0,39136.0,1.08563429]
[1646606426876,0.10852884,39137.0,39136.0,0.78443702]
[1646606427477,0.10852884,39137.0,39136.0,1.08443702]
[1646606427679,0.08105083,39137.0,39136.0,1.08443702]
[1646606428479,0.08118406,39137.0,39136.0,1.08443702]
[1646606429279,0.08118406,39137.0,39136.0,0.87612907]
[1646606429927,0.08118406,39137.0,39136.0,1.08414444]
[1646606432630,0.08118406,39137.0,39136.0,0.87612907]
[1646606432832,0.08118406,39137.0,39136.0,1.08416475]
[1646606433297,0.08118406,39137.0,39136.0,0.87612907]
[1646606435700,0.08118406,39137.0,39136.0,0.57612907]
[1646606436298,0.08118406,39137.0,39136.0,0.87612907]
[1646606437031,0.08118406,39137.0,39136.0,1.136514]
[1646606442503,0.08118406,39137.0,39136.0,0.87612907]
[1646606442704,0.08118406,39137.0,39136.0,0.82482907]
[1646606443808,0.08118406,39137.0,39136.0,1.13729099]
[1646606444432,0.08118406,39137.0,39136.0,0.82482907]
[1646606444633,0.04661108,39137.0,39136.0,0.82482907]
[1646606448802,0.04661108,39137.0,39136.0,1.13763274]
[1646606449202,0.04661108,39137.0,39136.0,0.82482907]
[1646606449803,0.04661108,39137.0,39136.0,0.87612907]
[1646606456387,0.04661108,39137.0,39136.0,1.39314013]
[1646606456591,0.04661108,39137.0,39136.0,1.4066842]
[1646606456792,0.0033,39143.0,39137.0,0.05]
[1646606456793,0.00021486,39138.0,39137.0,0.05]
[1646606456989,0.00021486,39138.0,39137.0,1.49405396]
[1646606457192,0.00021486,39138.0,39137.0,1.59405396]
[1646606457889,0.0033,39143.0,39137.0,1.59405396]
[1646606457890,0.00021486,39139.0,39138.0,0.191627]
[1646606458088,0.00021486,39139.0,39138.0,1.50696805]
[1646606458287,0.00021486,39139.0,39138.0,1.60696805]
[1646606458488,0.00021486,39139.0,39138.0,1.6708433]
[1646606458688,0.00021486,39139.0,39138.0,1.67204057]
[1646606458887,0.0033,39143.0,39138.0,1.67204057]
[1646606459087,0.0033,39143.0,39142.0,0.26067569]
[1646606459435,0.0033,39143.0,39142.0,1.04436569]
[1646606459636,0.0033,39143.0,39142.0,0.78369]
[1646606461038,0.0033,39143.0,39142.0,0.48369]
[1646606462442,0.0033,39143.0,39142.0,0.383646]
[1646606463037,0.00341947,39143.0,39142.0,0.383646]
[1646606464285,0.00341947,39143.0,39142.0,0.483646]
[1646606464887,0.00341947,39143.0,39142.0,0.69218148]
[1646606466088,0.00341947,39143.0,39142.0,0.483646]
[1646606466697,0.26341947,39143.0,39142.0,1.04432169]
[1646606467140,0.13960419,39143.0,39142.0,3.26856798]
[1646606467339,0.13960419,39143.0,39142.0,3.52900273]
[1646606468337,0.00131485,39144.0,39142.0,3.52900273]
[1646606468539,0.0011,39144.0,39143.0,0.683646]
[1646606468738,0.00131485,39144.0,39143.0,0.683646]
[1646606469540,0.00131485,39144.0,39143.0,0.3]
[1646606469741,0.0011,39144.0,39143.0,0.3]
[1646606469941,0.0011,39144.0,39143.0,0.683646]
[1646606470140,0.0011,39144.0,39143.0,0.89182895]
[1646606470343,0.0011,39144.0,39143.0,0.50818182]
[1646606470696,0.0011,39144.0,39143.0,0.683646]
[1646606470901,0.0011,39144.0,39143.0,0.89182378]
[1646606472298,0.0011,39144.0,39143.0,0.683646]
[1646606472498,0.0011,39144.0,39143.0,0.89181574]
[1646606473096,0.00120771,39144.0,39143.0,0.89181574]
[1646606474300,0.00120771,39144.0,39143.0,0.94311574]
[1646606475238,0.00120771,39144.0,39143.0,0.834946]
[1646606476538,0.12120771,39144.0,39143.0,0.834946]
[1646606480493,0.12120771,39144.0,39143.0,1.04308616]
[1646606480697,0.12120771,39144.0,39143.0,0.834946]
[1646606482343,0.12120771,39144.0,39143.0,1.04280628]
[1646606482543,0.12120771,39144.0,39143.0,0.834946]
[1646606482744,0.12120771,39144.0,39143.0,1.04279938]
[1646606487984,0.11620771,39144.0,39143.0,1.04279938]
[1646606488388,0.11620771,39144.0,39143.0,0.834946]
[1646606488584,0.11630332,39144.0,39143.0,0.834946]
[1646606488784,0.11630332,39144.0,39143.0,0.84665142]
[1646606489631,0.11630332,39144.0,39143.0,1.05418797]
[1646606490436,0.11630332,39144.0,39143.0,0.84665142]
[1646606490936,0.11630332,39144.0,39143.0,1.05414183]
[1646606491133,0.11630332,39144.0,39143.0,0.84665142]
[1646606491334,0.11630332,39144.0,39143.0,0.79535142]
[1646606492536,0.11630332,39144.0,39143.0,0.84665142]
[1646606493187,0.11620771,39144.0,39143.0,0.84665142]
[1646606493991,0.11620771,39144.0,39143.0,1.03346897]
[1646606495089,0.08276148,39144.0,39143.0,1.03346897]
[1646606497443,0.08276148,39144.0,39143.0,1.29350407]
[1646606497642,0.00021484,39145.0,39143.0,1.29350407]
[1646606497844,0.00021484,39145.0,39144.0,0.783646]
[1646606498243,0.00021484,39145.0,39144.0,0.97046355]
[1646606498446,0.0022,39146.0,39144.0,0.97046355]
[1646606498645,0.0022,39146.0,39145.0,0.683646]
[1646606498848,0.00241484,39146.0,39145.0,0.683646]
[1646606499645,0.0022,39146.0,39145.0,0.683646]
[1646606500046,0.0022,39146.0,39145.0,0.783646]
[1646606501286,0.0022,39146.0,39145.0,0.483646]
[1646606505042,0.0022,39146.0,39145.0,0.783646]
[1646606505441,0.0022,39146.0,39145.0,0.97078256]
[1646606507847,0.0822,39146.0,39145.0,0.97078256]
[1646606509294,0.0822,39146.0,39145.0,1.23081766]
[1646606512639,0.0822,39146.0,39145.0,0.97078256]
[1646606512839,0.0822,39146.0,39145.0,1.23081766]
[1646606513342,0.0822,39146.0,39145.0,0.97078256]
[1646606514741,0.0822,39146.0,39145.0,0.67078256]
[1646606515143,0.0822,39146.0,39145.0,0.483646]
[1646606515989,0.0822,39146.0,39145.0,0.67078256]
[1646606518088,0.08209541,39146.0,39145.0,0.67078256]
[1646606518489,0.07999828,39146.0,39145.0,0.67078256]
[1646606519091,0.07999828,39146.0,39145.0,0.97078256]
[1646606519438,0.07999828,39146.0,39145.0,0.67078256]
[1646606519643,0.07999828,39146.0,39145.0,0.483646]
[1646606520840,0.07999828,39146.0,39145.0,0.7436811]
[1646606521239,0.07999828,39146.0,39145.0,0.483646]
[1646606525990,0.07999828,39146.0,39145.0,0.38363]
[1646606527341,0.07999828,39146.0,39145.0,0.48363]
[1646606530710,0.07999828,39146.0,39145.0,0.7436585]
[1646606531310,0.07999828,39146.0,39145.0,0.93079506]
[1646606531809,0.07999828,39146.0,39145.0,0.67076656]
[1646606532009,0.07999828,39146.0,39145.0,0.48363]
[1646606532211,0.07999828,39146.0,39145.0,0.74371463]
[1646606537646,0.07999828,39146.0,39145.0,0.48363]
[1646606538293,0.07999828,39146.0,39145.0,0.7435983]
[1646606540303,0.07999828,39146.0,39145.0,0.48363]
[1646606540697,0.07999828,39146.0,39145.0,0.74352247]
[1646606545694,0.05646625,39146.0,39145.0,0.48363]
[1646606545895,0.05646625,39146.0,39145.0,0.74333258]
[1646606546095,0.05646625,39146.0,39145.0,0.48363]
[1646606548395,0.00010287,39146.0,39145.0,0.48363]
[1646606558346,0.00010287,39146.0,39145.0,0.67076656]
[1646606558544,0.06010287,39146.0,39145.0,0.67076656]
[1646606559146,0.06010287,39146.0,39145.0,0.48363]
[1646606565642,0.04022281,39146.0,39145.0,0.48363]
[1646606568589,0.04034141,39146.0,39145.0,0.48363]
[1646606569892,0.0001186,39146.0,39145.0,0.48363]
[1646606578596,0.0401186,39146.0,39145.0,0.48363]
[1646606579943,0.3401186,39146.0,39145.0,0.48363]
[1646606580145,0.38363,39145.0,39144.0,0.18729395]
[1646606580343,0.38363,39145.0,39143.0,0.01170542]
[1646606580344,0.75487993,39144.0,39143.0,0.01170542]
[1646606580544,1.2897461,39144.0,39141.0,0.006]
[1646606580741,0.40915,39141.0,39138.0,0.010224]
[1646606580942,0.53363,39139.0,39138.0,0.010224]
[1646606581245,0.02552,39138.0,39134.0,0.32131516]
[1646606581443,0.02552,39138.0,39134.0,0.00927304]
[1646606582040,0.32552,39138.0,39134.0,0.00927304]
[1646606582241,0.32552,39138.0,39133.0,0.31204212]
[1646606582441,0.02552,39136.0,39133.0,0.31204212]
[1646606582645,0.32552,39136.0,39130.0,0.67609126]
[1646606582842,0.02552,39136.0,39130.0,0.31204212]
[1646606583302,0.02552,39135.0,39130.0,0.31204212]
[1646606583502,0.02552,39135.0,39129.0,0.32550935]
[1646606583702,0.02552,39135.0,39128.0,0.31204212]
[1646606584005,0.02552,39135.0,39124.0,0.08140286]
[1646606584006,0.02552,39128.0,39125.0,0.31204212]
[1646606584206,0.38363,39127.0,39124.0,0.32952498]
[1646606584402,0.38363,39127.0,39124.0,0.01748286]
[1646606584602,0.68363,39127.0,39124.0,0.01248286]
[1646606584905,0.68363,39127.0,39118.0,0.31204212]
[1646606584906,0.55915,39125.0,39118.0,0.31204212]
[1646606585104,0.02552,39123.0,39116.0,0.31204212]
[1646606585303,0.38363,39120.0,39116.0,0.31204212]
[1646606585606,0.38363,39118.0,39115.0,0.3249055]
[1646606586102,0.02552,39117.0,39115.0,0.01286338]
[1646606586306,0.38363,39116.0,39115.0,0.01286338]
[1646606586506,0.38363,39116.0,39107.0,0.01277]
[1646606586507,0.68363,39116.0,39108.0,0.31204212]
[1646606586707,0.3,39116.0,39109.0,0.01090538]
[1646606586949,0.02552,39117.0,39109.0,0.01090538]
[1646606587149,0.38363,39116.0,39109.0,0.01090538]
[1646606587354,0.15,39120.0,39109.0,0.01090538]
[1646606587355,0.70915,39115.0,39109.0,0.01090538]
[1646606587757,0.79674,39115.0,39106.0,0.00021498]
[1646606588352,0.860704,39115.0,39106.0,0.00021498]
[1646606588555,0.860704,39115.0,39105.0,0.003]
[1646606588752,0.38363,39112.0,39106.0,0.00021497]
[1646606588953,0.32552,39111.0,39106.0,0.00021497]
[1646606589152,0.38363,39108.0,39106.0,0.00021497]
[1646606589358,0.32552,39107.0,39106.0,0.00021497]
[1646606589554,0.40915,39107.0,39106.0,0.00021497]
[1646606589753,0.15,39110.0,39105.0,0.003]
[1646606589754,0.40915,39106.0,39105.0,0.003]
[1646606589955,0.40915,39106.0,39105.0,0.00321497]
[1646606590793,0.02552,39106.0,39105.0,0.00321497]
[1646606590994,0.02552,39108.0,39105.0,0.003]
[1646606591791,0.40915,39107.0,39105.0,0.003]
[1646606592395,0.32552,39106.0,39105.0,0.003]
[1646606592593,0.70915,39106.0,39105.0,0.003]
[1646606593097,0.70925909,39106.0,39105.0,0.003]
[1646606593997,0.40915,39105.0,39103.0,0.00221497]
[1646606594195,0.70915,39104.0,39103.0,0.00221497]
[1646606594445,0.94149,39104.0,39103.0,0.00221497]
[1646606595046,1.04149,39104.0,39103.0,0.00221497]
[1646606595243,1.04149,39104.0,39103.0,0.0021087]
[1646606595244,1.14149,39104.0,39103.0,0.0021087]
[1646606595643,0.92560842,39104.0,39103.0,0.0021087]
[1646606596045,1.14149,39104.0,39103.0,0.0021087]
[1646606596245,1.30923842,39104.0,39103.0,0.0021087]
[1646606596644,1.30923842,39104.0,39103.0,0.00200243]
[1646606597546,2.09043842,39104.0,39103.0,0.00100243]
[1646606597748,0.02552,39102.0,39100.0,0.00072031]
[1646606597951,0.55915,39101.0,39100.0,0.00072031]
[1646606598193,0.95915,39101.0,39100.0,0.00072031]
[1646606598403,0.80672,39100.0,39099.0,0.00023019]
[1646606598600,0.02552,39098.0,39095.0,0.00023019]
[1646606598798,0.17552,39096.0,39083.0,0.00529486]
[1646606598997,0.02552,39092.0,39083.0,0.00529486]
[1646606599196,0.40915,39091.0,39083.0,0.00529486]
[1646606599398,0.38363,39090.0,39083.0,0.00529486]
[1646606599600,0.40915,39089.0,39084.0,0.063991]
[1646606600804,0.02552,39087.0,39083.0,0.001]
[1646606601000,0.40915,39086.0,39083.0,0.001]
[1646606601200,0.32552,39085.0,39083.0,0.001]
[1646606601401,0.38363,39084.0,39083.0,0.001]
[1646606602059,0.40915,39084.0,39083.0,0.001]
[1646606603357,0.70915,39084.0,39083.0,0.001]
[1646606604159,0.40915,39084.0,39083.0,0.001]
[1646606604863,0.65915,39084.0,39083.0,0.001]
[1646606605261,0.55915,39084.0,39080.0,0.04723024]
[1646606605560,0.55915,39084.0,39082.0,0.00023024]
[1646606605796,0.55924,39084.0,39082.0,0.00023024]
[1646606606198,0.40924,39084.0,39082.0,0.00023024]
[1646606606399,0.40915,39083.0,39082.0,0.00023024]
[1646606606600,0.40915,39083.0,39080.0,0.04723024]
[1646606607997,0.40915,39083.0,39080.0,0.04734604]
[1646606609001,0.40915,39083.0,39080.0,0.04723024]
[1646606609203,0.44915,39083.0,39080.0,0.04723024]
[1646606610863,0.4487969,39083.0,39080.0,0.04723024]
[1646606611369,0.4487969,39083.0,39078.0,0.001]
[1646606611370,0.09446047,39079.0,39078.0,0.001]
[1646606611569,0.09446047,39079.0,39078.0,0.38463]
[1646606611767,0.09446047,39079.0,39078.0,0.59862]
[1646606611963,0.09446047,39079.0,39078.0,0.89862]
[1646606612164,0.09446047,39079.0,39078.0,0.94992]
[1646606612770,0.09446047,39079.0,39078.0,1.0779]
[1646606614710,0.09446047,39079.0,39078.0,1.088141]
[1646606615211,0.09446047,39079.0,39078.0,1.07779373]
[1646606615612,0.09446047,39079.0,39078.0,0.69416373]
[1646606616012,0.09455047,39079.0,39078.0,0.69416373]
[1646606617351,0.09455047,39079.0,39078.0,1.07779373]
[1646606618145,0.09455047,39079.0,39078.0,0.68916373]
[1646606618346,0.09467611,39079.0,39078.0,0.68934621]
[1646606619348,0.09467611,39079.0,39078.0,1.07297621]
[1646606620047,0.09467611,39079.0,39078.0,0.98298621]
[1646606620455,0.09467611,39079.0,39078.0,0.68934621]
[1646606620706,0.13467611,39079.0,39078.0,1.07297621]
[1646606621308,0.13467611,39079.0,39078.0,0.68934621]
[1646606621516,0.13467611,39079.0,39078.0,1.07297621]
[1646606621907,0.13467611,39079.0,39078.0,0.68934621]
[1646606622308,0.13467611,39079.0,39078.0,1.07297621]
[1646606623410,0.13467611,39079.0,39078.0,0.68934621]
[1646606624853,0.12967611,39079.0,39078.0,1.07297621]
[1646606625356,0.12967611,39079.0,39078.0,0.98298621]
[1646606625560,0.00021437,39094.0,39079.0,0.10088]
[1646606625757,0.01278,39102.0,39084.0,0.47995157]
[1646606625954,0.1221,39103.0,39086.0,0.383551]
[1646606626154,0.00021437,39094.0,39088.0,0.293539]
[1646606626453,0.00021437,39094.0,39090.0,0.39557624]
[1646606626652,0.00021437,39094.0,39092.0,0.293514]
[1646606626854,0.00021437,39094.0,39093.0,0.498745]
[1646606627054,0.3,39102.0,39095.0,0.06396595]
[1646606627254,0.1896,39104.0,39096.0,0.38363]
[1646606627454,0.1896,39104.0,39095.0,0.12580335]
[1646606627754,0.1896,39104.0,39095.0,0.0618374]
[1646606627957,0.3,39103.0,39097.0,0.063966]
[1646606628400,0.02552,39107.0,39097.0,0.063966]
[1646606628597,0.00021491,39101.0,39097.0,0.063966]
[1646606629502,0.001,39102.0,39095.0,0.1258094]
[1646606629700,0.00021491,39101.0,39095.0,0.1258094]
[1646606630500,0.001,39102.0,39095.0,0.1258094]
[1646606631001,0.00021487,39100.0,39095.0,0.1258094]
[1646606631403,0.00021487,39100.0,39095.0,0.12570313]
[1646606631802,0.002,39104.0,39095.0,0.12570313]
[1646606632080,0.00010651,39099.0,39095.0,0.12570313]
[1646606632880,0.31275765,39107.0,39095.0,0.12570313]
[1646606633081,8.875e-05,39100.0,39097.0,0.06409504]
[1646606633285,0.00010651,39099.0,39097.0,0.06409504]
[1646606634082,8.875e-05,39100.0,39097.0,0.00012604]
[1646606634485,0.38363,39099.0,39097.0,0.00012604]
[1646606638403,8.875e-05,39100.0,39097.0,0.00012604]
[1646606638600,8.843e-05,39098.0,39096.0,0.06397]
[1646606639868,8.843e-05,39098.0,39095.0,0.001]
[1646606640474,0.0001952,39098.0,39095.0,0.001]
[1646606640776,0.0001952,39098.0,39096.0,0.344597]
[1646606641072,0.0001952,39098.0,39097.0,0.38363]
[1646606641270,0.0001952,39098.0,39096.0,0.06356584]
[1646606641472,0.0001952,39098.0,39097.0,0.383807]
[1646606641473,8.843e-05,39098.0,39097.0,0.383807]
[1646606641670,0.11181316,39096.0,39094.0,0.17793864]
[1646606641870,0.11181316,39096.0,39095.0,0.42178519]
[1646606642270,0.11181316,39096.0,39095.0,0.12879919]
[1646606643072,0.11181316,39096.0,39095.0,0.19276522]
[1646606643297,0.11181316,39096.0,39095.0,0.12879919]
[1646606643703,0.11181316,39096.0,39095.0,0.42178519]
[1646606644099,0.11181316,39096.0,39095.0,0.12879919]
[1646606644499,0.11181316,39096.0,39095.0,0.42178519]
[1646606645900,0.11181316,39096.0,39095.0,0.12879919]
[1646606646198,0.11181316,39096.0,39095.0,0.42178519]
[1646606647847,0.11181316,39096.0,39095.0,0.12879919]
[1646606648047,0.11181316,39096.0,39095.0,0.42178519]
[1646606648445,0.11188868,39096.0,39095.0,0.42191466]
[1646606649750,0.11188868,39096.0,39095.0,0.42892866]
[1646606649949,0.11188868,39096.0,39095.0,0.72191466]
[1646606650150,0.11188868,39096.0,39095.0,0.72191366]
[1646606650699,0.11188868,39096.0,39095.0,0.84983512]
[1646606650897,0.11188868,39096.0,39095.0,0.25685012]
[1646606651399,0.11188868,39096.0,39095.0,0.54983612]
[1646606652000,0.11188868,39096.0,39095.0,0.64983612]
[1646606652200,0.11188868,39096.0,39095.0,0.35685012]
[1646606652400,0.11188868,39096.0,39095.0,0.64983512]
[1646606652801,0.11188868,39096.0,39095.0,0.35685012]
[1646606653101,0.11188868,39096.0,39095.0,0.64983512]
[1646606653502,0.11188868,39096.0,39095.0,0.64983612]
[1646606653702,0.11188868,39096.0,39095.0,0.35685012]
[1646606653903,0.11188868,39096.0,39095.0,0.94983612]
[1646606654108,0.11188868,39096.0,39095.0,0.65685012]
[1646606654303,0.11188868,39096.0,39095.0,0.94983512]
[1646606654550,0.11188868,39096.0,39095.0,0.64983512]
[1646606654749,0.11188868,39096.0,39095.0,0.94983512]
[1646606655550,0.11188868,39096.0,39095.0,0.64983512]
[1646606656151,0.11188868,39096.0,39095.0,0.94983512]
[1646606659699,0.11188868,39096.0,39095.0,0.89853512]
[1646606660100,0.11139368,39096.0,39095.0,0.89853512]
[1646606661100,0.00027731,39100.0,39098.0,0.063962]
[1646606661959,0.383808,39099.0,39097.0,0.57838071]
[1646606662452,0.447792,39099.0,39097.0,0.57838071]
[1646606665054,0.473312,39099.0,39097.0,0.57838071]
[1646606668097,0.473312,39099.0,39097.0,0.57827444]
[1646606668295,0.409328,39099.0,39097.0,0.57827444]
[1646606668696,0.383808,39099.0,39097.0,0.57838502]
[1646606668898,0.409328,39099.0,39097.0,0.57838502]
[1646606671652,0.409328,39099.0,39097.0,0.01914154]
[1646606673301,0.409328,39099.0,39097.0,0.01927055]
[1646606673903,0.383808,39099.0,39097.0,0.01927055]
[1646606674701,0.409328,39099.0,39097.0,0.08324055]
[1646606675904,0.409328,39099.0,39097.0,0.01927055]
[1646606676402,0.02552,39098.0,39097.0,0.01927055]
[1646606676601,0.409328,39098.0,39097.0,0.01927055]
[1646606677358,0.709328,39098.0,39097.0,0.01927055]
[1646606677754,1.01867417,39098.0,39097.0,0.01927055]
[1646606677958,0.383808,39096.0,39089.0,0.00021508]
[1646606678157,0.383808,39091.0,39089.0,0.00021508]
[1646606678355,0.32552,39090.0,39089.0,0.00021508]
[1646606678558,1.023228,39090.0,39089.0,0.00021508]
[1646606678755,0.02552,39088.0,39077.0,0.36553977]
[1646606678955,0.02552,39088.0,39078.0,0.00086047]
[1646606678956,0.02552,39084.0,39078.0,0.00086047]
[1646606679154,0.32552,39084.0,39078.0,0.00086047]
[1646606679353,0.383808,39083.0,39078.0,0.00086047]
[1646606679953,0.383808,39083.0,39073.0,0.36553977]
[1646606680157,0.383808,39083.0,39079.0,0.00021509]
[1646606680554,0.3,39082.0,39079.0,0.00021509]
[1646606680806,0.383808,39081.0,39079.0,0.00021509]
[1646606681004,0.383808,39081.0,39073.0,0.00086049]
[1646606681005,0.3,39080.0,39073.0,0.00086049]
[1646606681207,0.02552,39083.0,39072.0,0.42487166]
[1646606681405,0.383808,39082.0,39078.0,0.00021543]
[1646606681606,0.3,39081.0,39078.0,0.00021543]
[1646606681805,0.383808,39082.0,39078.0,0.00021543]
[1646606682005,0.3,39081.0,39078.0,0.00021543]
[1646606682208,0.02552,39083.0,39078.0,0.00021543]
[1646606682209,0.383808,39082.0,39078.0,0.00021543]
[1646606682407,0.02552,39083.0,39073.0,0.064008]
[1646606682608,0.383808,39082.0,39078.0,0.00021543]
[1646606682816,0.064009,39083.0,39078.0,0.00021543]
[1646606683210,0.383808,39082.0,39078.0,0.00021543]
[1646606683410,0.383808,39081.0,39078.0,0.00021543]
[1646606683610,6.404e-05,39082.0,39076.0,0.01345635]
[1646606683810,6.404e-05,39082.0,39078.0,0.00021543]
[1646606684209,0.383808,39081.0,39078.0,0.00021543]
[1646606684447,6.404e-05,39082.0,39078.0,0.00021543]
[1646606684649,6.404e-05,39082.0,39076.0,0.01345635]
[1646606684949,0.383808,39081.0,39078.0,0.00021506]
[1646606686050,0.00206404,39082.0,39078.0,0.00021506]
[1646606686250,0.383808,39081.0,39078.0,0.00021506]
[1646606686849,0.3,39080.0,39078.0,0.00021506]
[1646606687051,0.383808,39079.0,39076.0,0.01086976]
[1646606687351,0.383808,39081.0,39078.0,0.00021506]
[1646606687750,0.383808,39079.0,39078.0,0.00021506]
[1646606688495,0.383808,39079.0,39077.0,0.00021509]
[1646606688695,0.001,39080.0,39072.0,0.01267027]
[1646606688696,0.383808,39076.0,39072.0,0.01267027]
[1646606688902,0.02552,39074.0,39071.0,0.00086047]
[1646606689097,0.3,39075.0,39071.0,0.00086047]
[1646606689098,0.409328,39072.0,39071.0,0.00086047]
[1646606689498,0.409328,39072.0,39070.0,6.047e-05]
[1646606689499,0.80672,39071.0,39070.0,6.047e-05]
[1646606689802,0.80672,39071.0,39066.0,0.001]
[1646606689803,0.409328,39068.0,39066.0,0.001]
[1646606689999,0.409328,39067.0,39066.0,0.001]
[1646606690395,0.709328,39067.0,39066.0,0.001]
[1646606691201,0.05,39066.0,39061.0,0.002]
[1646606691401,0.409328,39064.0,39061.0,0.002]
[1646606691801,0.509328,39063.0,39061.0,0.002]
[1646606692057,0.509328,39063.0,39061.0,0.00223062]
[1646606692257,0.509328,39063.0,39061.0,3.062e-05]
[1646606692258,0.459328,39062.0,39061.0,3.062e-05]
[1646606692458,0.759328,39062.0,39061.0,3.062e-05]
[1646606692656,0.859328,39062.0,39061.0,3.062e-05]
[1646606692956,0.923381,39062.0,39061.0,3.062e-05]
[1646606693160,0.923381,39062.0,39056.0,0.004]
[1646606693354,0.873381,39061.0,39056.0,0.004]
[1646606693556,0.809328,39061.0,39056.0,0.004]
[1646606694356,0.02552,39059.0,39057.0,0.002]
[1646606694558,0.409328,39058.0,39057.0,0.002]
[1646606694757,0.709328,39058.0,39057.0,0.002]
[1646606695158,0.709328,39058.0,39056.0,0.001]
[1646606695806,0.02552,39057.0,39056.0,0.001]
[1646606696002,0.383808,39057.0,39056.0,0.001]
[1646606697502,0.383808,39057.0,39056.0,0.00089373]
[1646606697903,0.393808,39057.0,39056.0,0.00089373]
[1646606699002,0.419328,39057.0,39056.0,0.00089373]
[1646606699202,0.393808,39057.0,39056.0,0.00089373]
[1646606700457,0.01,39057.0,39056.0,0.00089373]
[1646606700668,0.01,39057.0,39056.0,0.30803078]
[1646606700860,0.01,39057.0,39056.0,0.60803078]
[1646606701054,0.01,39057.0,39056.0,0.65803078]
[1646606701254,0.01,39057.0,39056.0,0.36468378]
[1646606702459,0.01,39061.0,39058.0,0.02552]
[1646606702661,0.01,39062.0,39061.0,0.357311]
[1646606702857,0.01,39062.0,39061.0,0.72051264]
[1646606703057,0.01,39062.0,39061.0,0.87051264]
[1646606703306,0.01,39062.0,39061.0,0.57721064]
[1646606704606,0.01,39062.0,39061.0,0.87051064]
[1646606704806,0.01,39062.0,39061.0,0.57721064]
[1646606705807,0.02,39062.0,39061.0,0.57721064]
[1646606706011,0.02,39062.0,39061.0,0.57840791]
[1646606707249,0.02,39062.0,39061.0,0.57830164]
[1646606707851,0.02,39062.0,39061.0,0.72830164]
[1646606709152,0.11601594,39062.0,39061.0,0.72830164]
[1646606709451,0.21173044,39062.0,39061.0,0.72830164]
[1646606709751,0.21173044,39062.0,39061.0,1.02160164]